Cogmind - Beta 15 *** ADVENTURER MODE // 2025.06.10 @ 15:22:47 Player: tcfire Result: Destroyed by D-53 Grenadier with Mini Grenade Launcher Performance ------------- Evolutions (0) 0 Regions Visited (3) 600 Robots Destroyed (20) 100 Value Destroyed (281) 281 Prototype IDs (23) 460 Alien Tech Used (0) 0 Bonus (300) 300 TOTAL SCORE: 1741 Bonus ------- Aligned with FarCom 300 Cogmind --------- Core Integrity 0/250 Matter 300/300 Energy 100/100 System Corruption 0% Temperature Cool (0) Movement Walking (120) Location -10/Exiles Parts ------- > --- POWER (1) -------- (None) > --- PROPULSION (2) --- Aluminum Leg > --- UTILITY (2) ------ Small Storage Unit > --- WEAPON (2) ------- (None) > --- INVENTORY (8) ---- Flying Fortress v7 Improved Heat Sink Improved Terrain Scanner Seismic Detector Tractor Beam Peak State ------------ > --- POWER ------------ Ion Engine > --- PROPULSION ------- Aluminum Leg Aluminum Leg > --- UTILITY ---------- Small Storage Unit Seismic Detector > --- WEAPON ----------- EM Pulse Gun Grenade Launcher > --- INVENTORY -------- Light Ion Engine Flying Fortress v7 Improved Heat Sink Improved Terrain Scanner Tractor Beam [Rating: 11] Favorites ----------- Power Ion Engine Engine Ion Engine Propulsion Aluminum Leg Leg Aluminum Leg Utility Small Storage Unit Device Seismic Detector Storage Small Storage Unit Weapon EM Pulse Gun Energy Gun EM Pulse Gun Launcher Grenade Launcher Build | -11 -10 -10 -10 ------- Run | Yrd Mat Min Exi Slots Evolved . | . . . . Power . | . . . . Propulsion . | . . . . Utility . | . . . . Weapon . | . . . . Parts Attached 8 | 6 1 1 . Power 1 | 1 . . . Engine 1 | 1 . . . Core . | . . . . Reactor . | . . . . Propulsion 2 | 2 . . . Treads . | . . . . Leg 2 | 2 . . . Wheel . | . . . . Hover . | . . . . Flight . | . . . . Utility 2 | 1 1 . . Device 1 | . 1 . . Storage 1 | 1 . . . Processor . | . . . . Hackware . | . . . . Protection . | . . . . Artifact . | . . . . Weapon 3 | 2 . 1 . Energy Gun 2 | 2 . . . Energy Cannon . | . . . . Ballistic Gun . | . . . . Ballistic Cannon . | . . . . Launcher 1 | . . 1 . Special Weapon . | . . . . Impact Weapon . | . . . . Slashing Weapon . | . . . . Piercing Weapon . | . . . . Special Melee Weapon . | . . . . Unidentified Prototypes . | . . . . Parts Lost 5 | . . 1 4 Power 1 | . . . 1 Propulsion 1 | . . . 1 Utility . | . . . . Weapon 3 | . . 1 2 Highest Loss Streak 3 | . . 1 3 To Critical Strikes . | . . . . Average Backups 5 | 2 5 7 5 Power . | . 1 1 . Propulsion 1 | . 1 2 1 Utility 3 | 1 2 4 3 Weapon . | . . . . Tool/Special . | . . . . Unused Backups 10 | . 2 . 8 Power 1 | . . . 1 Propulsion 3 | . . . 3 Utility 6 | . 2 . 4 Weapon . | . . . . Tool/Special . | . . . . Average Slot Usage (%) 93 | . 92 98 90 Engine 13 | . 14 14 13 Leg 27 | . 28 28 25 Device 11 | . 7 14 12 Storage 14 | . 14 14 14 Energy Gun 20 | . 28 22 11 Launcher 5 | . . 4 11 Peak Build Rating 11 | 6 8 8 11 Average Rating 7 | 5 6 7 8 On Entrance 5 | . 6 8 8 Naked Turns . | . . . . Heaviest Build 16 | 14 15 16 16 Greatest Support 20 | 20 20 20 20 Greatest Overweight (x) 1 | . . . 1 Average Overweight (x) . | . . . . Largest Inventory Capacity 8 | 8 8 8 8 Average Capacity 7 | 7 8 8 8 Most Carried 8 | 5 8 8 8 Average Carried 6 | 2 5 7 7 Final Capacity 8 | 8 8 8 8 Final Carried 8 | 4 8 7 8 Class Distribution -------------------- 100% | Mutant Dominant Class ---------------- Mutant | -10/Materials Mutant | -10/Mines Mutant | -10/Exiles Resources | -11 -10 -10 -10 ----------- Run | Yrd Mat Min Exi Matter Collected 320 | 260 . 60 . Remotely . | . . . . Salvage Created 545 | 207 155 174 9 Parts 46 | 22 13 11 . Haulers Intercepted . | . . . . Recyclers Shooed 1 | . . 1 . Parts Field Recycled . | . . . . Retrieved Matter . | . . . . Parts Self-Destructed . | . . . . Prevented . | . . . . Kills | -11 -10 -10 -10 ------- Run | Yrd Mat Min Exi Combat Hostiles Destroyed 11 | . 5 5 1 Guns 8 | . 5 2 1 AOE 3 | . . 3 . Classes Destroyed 6 | 3 2 1 . Worker 3 | 2 . 1 . Tunneler 7 | 5 . 2 . Recycler 1 | 1 . . . Swarmer 4 | . 3 . 1 Grunt 5 | . 2 3 . Assembled 2 | . . 2 . Best Kill Streak 6 | 3 3 6 1 Combat Bots Only 3 | . 3 3 1 Max Kills in Single Turn 4 | 1 1 4 1 Gunslinging . | . . . . Exploded 2 | . . 2 . Melee . | . . . . Uniques/NPCs Destroyed . | . . . . Combat | -11 -10 -10 -10 -------- Run | Yrd Mat Min Exi Hostile Shots Fired 67 | . 15 19 33 Missed 21 | . 4 4 13 Hits 46 | . 11 15 20 Projectile 46 | . 11 15 20 AOE 12 | . . . 12 Damage Taken 695 | . 72 182 441 Core 261 | . 18 36 207 Absorbed by Shields . | . . . . Ignored by Resistances 206 | . 24 51 131 Core Remaining (%) 100 | 100 . . . Volleys Fired 34 | 9 9 13 3 Largest 2 | 2 2 2 1 Hottest 80 | 80 80 80 40 Shots Fired 58 | 18 18 19 3 Gun 54 | 18 18 15 3 Cannon . | . . . . Launcher 4 | . . 4 . Special . | . . . . Kinetic . | . . . . Thermal . | . . . . Explosive 4 | . . 4 . Electromagnetic 54 | 18 18 15 3 Robot Hit Streak 9 | 9 7 4 2 Robot Miss Streak 1 | 1 1 1 1 Penetration Max . | . . . . Secondary Targets 2 | . 2 . . Max Gunslinging Chain 1 | . 1 . . Shots Hit Robots 37 | 12 13 10 2 Core Hits 31 | 8 7 14 2 Critical Kills . | . . . . Critical Parts Destroyed . | . . . . Critical Strikes . | . . . . Melee Attacks . | . . . . Impact . | . . . . Slashing . | . . . . Piercing . | . . . . Sneak Attacks . | . . . . Combat Hostiles . | . . . . Follow-up Attacks . | . . . . Damage Inflicted 718 | 165 167 360 26 Guns 468 | 165 167 110 26 Cannons . | . . . . Explosions 248 | . . 248 . Melee . | . . . . Ramming 2 | . . 2 . Kinetic . | . . . . Thermal 64 | . . 64 . Explosive 184 | . . 184 . Electromagnetic 468 | 165 167 110 26 Impact . | . . . . Slashing . | . . . . Piercing . | . . . . Highest Corruption . | . . . . Average Corruption . | . . . . Corruption Purged . | . . . . Corruption Blocked . | . . . . Overload Shots . | . . . . Overflow Damage . | . . . . Projectiles . | . . . . Explosions . | . . . . Melee . | . . . . Knockbacks . | . . . . Impact . | . . . . Kinetic . | . . . . Secondary . | . . . . Self-Inflicted Damage 16 | . . 16 . Shots 1 | . . 1 . Rammed . | . . . . Targets Rammed 1 | . . 1 . Kicked 1 | . . 1 . Crushed . | . . . . Highest Temperature 93 | 36 93 36 . Average Temperature 24 | 14 36 20 . Received Heat Transfer 57 | . 21 30 6 Siege Activations . | . . . . Martial Activations . | . . . . Shielding Activations . | . . . . Robots Disrupted . | . . . . Combat Hostiles . | . . . . Robots Corrupted . | . . . . Combat Hostiles . | . . . . Parts Fried 1 | . 1 . . Impact Corruptions . | . . . . Robots Melted . | . . . . Combat Hostiles . | . . . . Parts Melted . | . . . . Heat Transferred 100 | . . 100 . Parts Sabotaged . | . . . . Parts Stolen . | . . . . Parts Stripped . | . . . . Power Chain Reactions 1 | . . 1 . Alert | -11 -10 -10 -10 ------- Run | Yrd Mat Min Exi Maximum Alert Level . | . . . . Low Security (%) 100 | 100 100 100 . Level 1 . | . . . . Level 2 . | . . . . Level 3 . | . . . . Level 4 . | . . . . Level 5 . | . . . . High Security . | . . . . Max Security . | . . . . Peak Influence 85 | 10 70 85 . Initial 9 | . . 9 . Average 19 | 2 27 22 . Influence Increases 385 | 40 120 130 95 Destroy 0b10 Robot/C 180 | . 100 60 20 Destroy 0b10 Robot/NC 55 | 40 . 15 . Destroy Leader 20 | . 20 . . Destroy Structure 25 | . . 25 . Lose Combat Pursuer 105 | . . 30 75 Influence Decreases 340 | 40 90 105 105 Entered New Map 76 | . . 21 55 Time Decay 234 | 40 90 74 30 Lost Part 30 | . . 10 20 Squads Dispatched . | . . . . Investigation . | . . . . Extermination . | . . . . Reinforcement . | . . . . Assault . | . . . . Garrison . | . . . . Intercept . | . . . . Searches Triggered . | . . . . Construction Impeded . | . . . . Haulers Reinforced . | . . . . Active Scanning Responses . | . . . . Cargo Convoy Interrupts . | . . . . Stealth | -11 -10 -10 -10 --------- Run | Yrd Mat Min Exi Distress Signals 1 | . 1 . . Communications Jammed . | . . . . Distress Signals . | . . . . Times Spotted 22 | . 7 7 8 Peak Tracking Total 8 | . 3 4 8 Tactical Retreats 3 | . . 2 1 Traps | -11 -10 -10 -10 ------- Run | Yrd Mat Min Exi Traps Triggered . | . . . . Indirectly . | . . . . Trap Hack Attempts . | . . . . Triggered . | . . . . Disarmed . | . . . . Reprogrammed . | . . . . Reused . | . . . . Traps Extracted . | . . . . Installed . | . . . . Triggered . | . . . . Machines | -11 -10 -10 -10 ---------- Run | Yrd Mat Min Exi Machines Disabled . | . . . . Max in Single Turn . | . . . . Machines Repaired . | . . . . Machines Dismantled . | . . . . Machines Sabotaged . | . . . . Overloaded Fab Kills . | . . . . Hacking | -11 -10 -10 -10 --------- Run | Yrd Mat Min Exi Machines Accessed 2 | . 1 . 1 Terminals 1 | . 1 . . Fabricators . | . . . . Repair Stations . | . . . . Recycling Units . | . . . . Scanalyzers . | . . . . Garrison Access . | . . . . Total Hacks 3 | . 2 . 1 Successful 3 | . 2 . 1 Failed . | . . . . Catastrophic . | . . . . Database Lockouts . | . . . . Manual 2 | . 1 . 1 Terminals 2 | . 2 . . Fabricators . | . . . . Repair Stations . | . . . . Recycling Units . | . . . . Scanalyzers . | . . . . Garrison Access . | . . . . Terminal Hacks 2 | . 1 . 1 Zone Layout 1 | . 1 . . Proto ID Catalog 1 | . . . 1 Fabricator Hacks . | . . . . Repair Station Hacks . | . . . . Recycling Unit Hacks . | . . . . Scanalyzer . | . . . . Garrison Access Hacks . | . . . . Unauthorized Hacks 1 | . 1 . . Terminals 1 | . 1 . . Botnet 1 | . 1 . . Fabricators . | . . . . Repair Stations . | . . . . Recycling Units . | . . . . Scanalyzers . | . . . . Garrison Access . | . . . . Data Cores Recovered . | . . . . Used . | . . . . Hacking Detections . | . . . . Full Trace Events . | . . . . Feedback Events . | . . . . Feedback Blocked . | . . . . Robot Schematics Acquired . | . . . . Robots Built . | . . . . Authchips . | . . . . Time . | . . . . Total Robot Build Rating . | . . . . Part Schematics Acquired . | . . . . Parts Built . | . . . . Authchips . | . . . . Time . | . . . . Total Part Build Rating . | . . . . Parts Repaired . | . . . . Time . | . . . . Parts Recycled . | . . . . Recycled Matter . | . . . . Retrieved Matter . | . . . . Retrieved Components . | . . . . Parts Scanalyzed . | . . . . Part Schematics Acquired . | . . . . Parts Damaged . | . . . . Bothacking | -11 -10 -10 -10 ------------ Run | Yrd Mat Min Exi Used RIF Installer . | . . . . Robots Hacked . | . . . . Non-combat . | . . . . Combat . | . . . . Robot Hacks Applied . | . . . . Relay Couplers Released . | . . . . Fabnet Peak Effective % . | . . . . Robots Rewired . | . . . . Allies Hacked . | . . . . Hacks Repelled . | . . . . Allies | -11 -10 -10 -10 -------- Run | Yrd Mat Min Exi Total Allies . | . . . . Largest Group . | . . . . Highest-Rated Group . | . . . . Highest-Rated Ally . | . . . . Total Orders . | . . . . Ally Attacks . | . . . . Total Damage . | . . . . Kills . | . . . . Allies Corrupted . | . . . . Allies Melted . | . . . . Intel | -11 -10 -10 -10 ------- Run | Yrd Mat Min Exi Active Infowar (turns) 737 | . 131 330 276 Seismic 737 | . 131 330 276 Robot Analysis Total . | . . . . Derelict Logs Recovered . | . . . . Drone Launches . | . . . . Drone Recoveries . | . . . . Exploration | -11 -10 -10 -10 ------------- Run | Yrd Mat Min Exi Turns Passed 1067 | 164 249 330 324 Spaces Moved 770 | 109 174 228 259 Core 13 | 13 . . . Treads . | . . . . Legs 757 | 96 174 228 259 Wheels . | . . . . Hover . | . . . . Flight . | . . . . Fastest Speed 50 | 50 120 120 120 Average Speed 119 | 111 120 120 121 Slowest Speed 190 | 120 120 120 190 Overloaded Moves . | . . . . Propulsion Burnouts . | . . . . Robots Hopped . | . . . . Potential Cave-ins . | . . . . Cave-ins Triggered . | . . . . Exploration Rate (%) 32 | 5 32 45 49 Regions Visited 3 Branch Regions 2 Pre-discovered Areas . | . . . . Known Exits Taken . | . . . . Unknown Exits Taken 3 | 1 1 1 . Scrap Searched 1 | . . 1 . Spaces Dug 8 | . . 8 . Terrain Destroyed 36 | . . 36 . Melee . | . . . . Projectile . | . . . . AOE 36 | . . 36 . Terrain Rammed . | . . . . Walls Destroyed . | . . . . Machines Disabled . | . . . . Actions | -11 -10 -10 -10 --------- Run | Yrd Mat Min Exi Total 863 | 133 197 265 268 Wait 28 | . 5 23 . Move 767 | 108 173 227 259 Hop . | . . . . Pick Up 18 | 10 7 . 1 Fast Attach . | . . . . Attach 8 | 6 1 1 . Detach 1 | . . . 1 Swap . | . . . . Drop 6 | . 2 . 4 Fire 34 | 9 9 13 3 Melee . | . . . . Ram . | . . . . Kick 1 | . . 1 . Crush . | . . . . Escape Stasis . | . . . . Rewire . | . . . . Trap . | . . . . Miscellaneous . | . . . . Route ------- -11/Scrapyard -10/Materials -10/Mines (discovered 3 exits: [*Mat x2] / *Exi) -10/Exiles (discovered 1 exit: [*Min]) History --------- Turn | Location | Event 8 | -11/Scrapyard | Discovered new exit (range 15) 165 | -11/Scrapyard | Entered Materials 304 | -10/Materials | Build established: Mutant 402 | -10/Materials | Discovered new exit (range 6) 414 | -10/Materials | Entered Mines 438 | -10/Mines | Found DCF Scrap (13 items) 502 | -10/Mines | Discovered new exit (range 6) 576 | -10/Mines | Discovered new exit (range 13) 601 | -10/Mines | Excavation squad dispatched 601 | -10/Mines | A large section of the Mines collapsed 736 | -10/Mines | Deemed a non-threat by the Exiles lab entrance 737 | -10/Mines | Discovered new exit (range 5) 744 | -10/Mines | Entered Exiles 773 | -10/Exiles | Discovered new exit (range 15) 789 | -10/Exiles | Met 8R-AWN 808 | -10/Exiles | Met EX-HEX 846 | -10/Exiles | Met EX-BIN 861 | -10/Exiles | Aligned with FarCom system 862 | -10/Exiles | Given EX-Vault access code 894 | -10/Exiles | Opened EX-Vault 904 | -10/Exiles | Found Flying Fortress v7 929 | -10/Exiles | Warned to stay clear of 0b10 Research branches 946 | -10/Exiles | Exiles lab attacked by MAIN.C 1019 | -10/Exiles | Core integrity fell below 50% 1046 | -10/Exiles | Lost 3 parts (1n2w) 1053 | -10/Exiles | Core integrity fell below 20% 1067 | -10/Exiles | Lost 7 allies 1068 | -10/Exiles | Destroyed by D-53 Grenadier with Mini Grenade Launcher Last Messages --------------- 01027_ as-58686 springs to life. 01027_ as-30230 springs to life. 01028_ as-57373 springs to life. 01028_ as-34994 springs to life. 01028_ as-96999 springs to life. 01028_ as-64714 springs to life. 01028_ as-45159 destroyed. 01028_ Machine disabled. 01028_ as-57373 destroyed. 01028_ as-96999 destroyed. 01028_ Machine disabled. 01030_ as-30230 destroyed. 01032_ as-58686 destroyed. 01033_ Slug penetrates as-64714. 01035_ as-34994 destroyed. 01035_ Machine disabled. 01036_ as-64714 destroyed. 01041_ Machine disabled. 01057_ Ion Engine destroyed. 01066_ The unstable cave ceiling collapses. Map ----- +----------------------------------------------------+ | ??????????????????????????????????# #?#""""""" | | ??????????????????????????????????# #?#""""""" | | ?????????????????????????????????## ###"" """" | | ?????????????????????????????????#" """" | | ?????????????????????????????????#" """ | | ?????????????????????????????????#" """ | | ?????????????????????????????????#" """ | | ?????????????????????????????????#" """ | | ?????????????????????????????????#" """ | | ?????????????????????????????????## """ | | ??????????????????????????????????# """ | | ????????????????????? ????????????#" "X" """ | | ????????????????????" ????????????#" """ | | ???????????????????? ????????????#" """"""""" | | ????????????????????" ??????????##" ########## | | ????????????????????# ?????????##"" #????????? | | ??????????????????### ##??######"" #????????? | | ?????????????"#####X# #"###""""""" ##???????? | | ???????????? """""" " "" ##???#### | | ???????????? "" """ " #####""" | | ???????????? " " " " | | ??????????? " | | ??????????? g | | ??????????# | | ???????????# | | ????????????#" @ | | ?????????????""" d | | ????????????#" #""" | | ????????????"" "" ####### | | ????????????""" """#####?????## " | | ?????????????" """##??????????##"""" | | ?????????????"t ""#????????????#"" | | ????????????? ##????????????"""" | | ?????????????" ????????????? | | ????????????? ???????????? | | ?????????????? ????????????? | | ??????????????"" ???????????? | | ???????????????? ???????????? | | ?????????????????? ???????????? "" | | ????????????????????? ?????????????????"" " " " | | ??????????????????????? ??????????????????##""" "" | | ??????????????????????????????????????????????"""? | | ?????????????????????????????????????????????????? | | ?????????????????????????????????????????????????? | | ?????????????????????????????????????????????????? | | ?????????????????????????????????????????????????? | | ?????????????????????????????????????????????????? | | ?????????????????????????????????????????????????? | | ?????????????????????????????????????????????????? | | ?????????????????????????????????????????????????? | +----------------------------------------------------+ Best States ------------- Heat Dissipation 25 Energy Generation 10 Energy Capacity 250 Matter Stores 300 Matter Capacity 300 Sight Range 16 Terrain Scan Density 10 Resistance: KI 20 Resistance: TH 20 Resistance: EX 20 Resistance: EM 20 Resistance: I 20 Resistance: S 20 Resistance: P 20 Evasion (%) 55 Offensive Hacking 10 Item Schematics ----------------- None Robot Schematics ------------------ None Fabricated ------------ Nothing Repaired ---------- Nothing Alien Tech Used ----------------- None Achievements -------------- True Hacker Challenges ------------ None Game ------ Seed VisualCoilNanoactuators Manual? 0 Play Time 00:12:03 Cumulative 34.7 hours Start 2025.06.10 @ 15:11:13 End 2025.06.10 @ 15:22:47 Sessions 1 Manual Loads 0 Difficulty Adventurer Special Mode None Game No. 43 Rogue 0 Adventurer 9 Explorer 34 Win Type - Total 1 Types 1/0/0/0/0/0/0/0/0/0 Lore% 15 Gallery% 40 Achievement% 40 Wizard Run 0 Options --------- Layout 1 ASCII 0 Keyboard 0 Movement Mouse Keybinds 0 Fullscreen 1 Font 42/SmallcapsGlow Map View 52x41 Zoom Use 0% Tactical HUD 1 Map Filters NONE Filters NONE Steam 1 RUN: 68bb3bbd-7d88-49fb-bbe9-cd80d366b120